bitfinex/quotes_ETHUSD_20250403
["timestamp","ask_amount","ask_price","bid_price","bid_amount"]
[1743686073293,5.67472,1762.2,1761.9,5.67554]
[1743686073486,5.67516,1762.1,1761.8,5.67596]
[1743686073687,5.67444,1762.3,1761.7,1.6569]
[1743686073891,5.67444,1762.3,1762.0,5.67535]
[1743686074062,5.96855259,1762.4,1762.0,5.67525]
[1743686074267,0.29446259,1762.4,1762.1,7.18236]
[1743686074469,5.96855259,1762.4,1762.1,1.5075]
[1743686075090,5.67381,1762.5,1762.2,5.6746]
[1743686075295,5.67381,1762.5,1762.1,7.18244]
[1743686075593,11.34777,1762.5,1762.1,7.18244]
[1743686075809,5.96842444,1762.7,1762.2,5.67451]
[1743686075993,5.96842444,1762.7,1762.2,11.34913]
[1743686076195,0.29500444,1762.7,1762.3,5.67422]
[1743686076783,0.29500444,1762.7,1762.4,5.67388]
[1743686077031,0.29500444,1762.7,1762.4,12.9273]
[1743686077306,0.29500444,1762.7,1762.5,5.67346]
[1743686077489,20.18692,1763.1,1762.6,5.67343]
[1743686077804,7.211,1763.1,1762.7,5.6729]
[1743686077965,7.211,1763.1,1762.9,5.67229]
[1743686078514,0.29459621,1763.2,1762.9,5.67229]
[1743686078709,0.29459621,1763.2,1762.9,11.3446]
[1743686078909,0.29459621,1763.2,1763.0,5.67214]
[1743686079409,5.67091,1763.4,1763.0,5.67214]
[1743686079609,5.67091,1763.4,1763.0,11.34419]
[1743686079795,18.54927,1763.5,1763.1,5.67162]
[1743686079996,5.67091,1763.4,1763.1,5.67162]
[1743686080191,11.34196,1763.4,1763.0,5.67202]
[1743686080490,5.67091,1763.4,1763.0,5.67202]
[1743686080692,12.87858,1763.5,1763.1,5.67171]
[1743686080898,5.67054,1763.5,1763.2,5.67132]
[1743686081093,5.96499462,1763.6,1763.1,1.5735]
[1743686081315,0.29458462,1763.6,1763.5,5.67054]
[1743686081492,5.66961,1763.8,1763.4,5.67077]
[1743686081691,11.63380951,1763.8,1763.4,5.67077]
[1743686081893,5.96405951,1763.8,1763.5,5.67052]
[1743686082094,5.96414951,1763.8,1763.4,5.6708]
[1743686082407,5.6699,1763.7,1763.4,5.6708]
[1743686082806,0.29444951,1763.8,1763.5,5.6705]
[1743686083008,0.29444951,1763.8,1763.5,1.6317]
[1743686083493,0.05,1763.9,1763.5,1.6317]
[1743686083697,5.71927,1763.9,1763.5,1.6317]
[1743686083898,0.05,1763.9,1763.6,5.67003]
[1743686084097,0.05,1763.9,1763.6,11.34008]
[1743686084294,0.05,1763.9,1763.6,5.67019]
[1743686085419,0.05,1763.9,1763.6,11.34027]
[1743686085601,0.05,1763.9,1763.6,5.67008]
[1743686086019,0.05,1763.9,1763.6,11.34014]
[1743686086318,0.05,1763.9,1763.6,5.67006]
[1743686086488,5.71925,1763.9,1763.5,8.032417]
[1743686086689,0.05,1763.9,1763.5,1.6317]
[1743686086886,5.67003,1763.7,1763.3,12.97266]
[1743686087109,5.67003,1763.7,1763.3,7.30154]
[1743686087316,5.67003,1763.7,1763.3,12.97255]
[1743686087525,5.67003,1763.7,1763.3,14.269805]
[1743686087843,5.67024,1763.6,1763.3,1.6305]
[1743686088021,7.246,1763.9,1763.0,7.3003]
[1743686088022,5.6712,1763.3,1763.0,7.3003]
[1743686088322,5.6712,1763.3,1762.8,7.30083]
[1743686088323,5.67153,1763.2,1762.8,7.30083]
[1743686088630,11.34273,1763.3,1762.9,5.67237]
[1743686088792,12.8669,1763.4,1763.0,5.67214]
[1743686088992,7.196,1763.4,1763.3,5.67118]
[1743686089205,5.67031,1763.6,1763.2,7.29959]
[1743686089544,11.34074,1763.6,1763.2,7.29959]
[1743686089721,11.34074,1763.6,1763.2,8.59673]
[1743686089928,11.34075,1763.6,1763.2,8.59673]
[1743686090402,11.34077,1763.6,1763.2,8.59673]
[1743686090609,5.67031,1763.6,1763.2,8.59673]
[1743686091023,11.34074,1763.6,1763.2,8.59673]
[1743686091225,5.67031,1763.6,1763.2,8.5967]
[1743686091400,11.3407,1763.6,1763.2,8.5967]
[1743686091722,11.34254,1763.3,1763.0,1.6441]
[1743686091898,11.34257,1763.3,1763.0,1.6441]
[1743686092095,5.67154,1763.2,1763.0,1.6441]
[1743686092297,5.67124,1763.3,1763.0,7.31618]
[1743686092616,1.5856,1763.5,1763.0,1.6441]
[1743686092817,5.67183,1763.1,1762.8,7.32868]
[1743686093020,5.67183,1763.1,1762.8,8.628853]
[1743686093198,5.67152,1763.2,1762.8,14.301523]
[1743686093399,5.67152,1763.2,1762.9,5.67237]
[1743686093699,5.6709,1763.4,1763.0,5.67196]
[1743686093924,5.67128,1763.3,1762.8,2.956073]
[1743686094226,5.67184,1763.1,1762.8,7.32865]
[1743686094432,5.6716,1763.2,1762.8,13.00128]
[1743686095025,5.6716,1763.2,1762.8,7.32853]
[1743686095231,5.67196,1763.1,1762.8,7.32853]
[1743686095530,5.6716,1763.2,1762.8,13.00118]
[1743686095717,11.34331,1763.2,1762.8,8.628648]
[1743686095928,5.67182,1763.1,1762.8,8.628648]
[1743686096234,5.67182,1763.1,1762.2,1.5324]
[1743686096235,10.189,1763.1,1762.2,1.5324]
[1743686096399,5.67329,1762.7,1762.3,5.67435]
[1743686096602,5.67329,1762.7,1762.3,5.67425]
[1743686096906,11.34659,1762.7,1762.3,6.394915]
[1743686097096,5.67345,1762.6,1762.3,6.394915]
[1743686097304,11.34668,1762.7,1762.3,6.394915]
[1743686097499,11.34658,1762.7,1762.3,6.394905]
[1743686097955,5.67329,1762.7,1762.3,6.394905]
[1743686098303,5.6726,1762.9,1762.6,5.67343]
[1743686098602,5.67306,1762.8,1762.5,1.5377]
[1743686098821,5.67326,1762.7,1762.5,1.5377]
[1743686099203,5.67258,1762.9,1762.5,12.88508]
[1743686099403,5.67293,1762.8,1762.5,1.5377]
[1743686099619,5.67331,1762.7,1762.3,5.67432]
[1743686099829,5.67382,1762.5,1762.3,1.5183]
[1743686100130,5.67382,1762.5,1762.1,7.19318]
[1743686100298,11.34775,1762.5,1762.1,7.19318]
[1743686100502,5.67382,1762.5,1762.1,12.86811]
[1743686100759,11.34786,1762.5,1762.1,7.19318]
[1743686101039,5.67482,1762.2,1761.9,1.5976]
[1743686101253,5.67386,1762.5,1762.1,5.67492]
[1743686101427,5.67386,1762.5,1761.9,1.5976]
[1743686101428,5.67375,1762.5,1761.9,1.5976]
[1743686101732,5.67477,1762.2,1761.9,1.5976]
[1743686101916,11.34903,1762.3,1761.9,7.27315]
[1743686102130,5.67497,1762.2,1761.9,1.5976]
[1743686102432,5.6757,1761.9,1761.6,7.24748]
[1743686102620,5.6757,1761.9,1761.6,1.571]
[1743686102930,5.6757,1761.9,1761.4,12.92522]
[1743686102931,5.67602,1761.8,1761.4,12.92522]
[1743686103119,11.35227,1761.8,1761.4,7.24811]
[1743686103337,5.67644,1761.7,1761.4,1.571]
[1743686103552,11.35299,1761.7,1761.4,1.571]
[1743686103846,5.67644,1761.7,1761.4,1.571]
[1743686104354,11.35309,1761.7,1761.4,1.571]
[1743686104570,1.5575,1761.8,1761.4,1.571]
[1743686104571,5.67669,1761.6,1761.4,1.571]
[1743686104722,5.67697,1761.5,1761.2,1.5774]
[1743686104921,5.67669,1761.6,1761.2,8.553667]
[1743686106149,5.67635,1761.7,1761.3,5.67759]
[1743686106330,5.67581,1761.9,1761.4,5.6773]
[1743686106530,5.67631,1761.8,1761.4,5.6773]
[1743686106841,5.67669,1761.6,1761.2,14.231417]
[1743686107038,5.67669,1761.6,1761.2,8.553507]
[1743686107349,5.67669,1761.6,1761.2,14.231337]
[1743686107752,5.67669,1761.6,1761.2,14.231267]
[1743686108052,5.67713,1761.5,1761.2,1.5774]
[1743686108255,5.67742,1761.4,1761.1,0.05]
[1743686108563,3.55,1761.9,1761.1,0.05]
[1743686108564,0.42603771,1762.1,1761.1,0.05]
[1743686108773,0.567497,1762.2,1761.1,0.05]
[1743686108774,5.67582,1761.9,1761.4,5.6773]
[1743686111254,5.67408,1762.4,1762.1,5.67501]
[1743686111455,7.21136,1762.5,1762.1,11.34993]
[1743686111758,7.21136,1762.5,1762.1,5.67492]
[1743686112120,5.67408,1762.4,1762.1,5.67492]
[1743686112325,7.50566904,1762.7,1762.2,1.4978]
[1743686112547,5.67326,1762.7,1762.3,5.67428]
[1743686112852,0.42740996,1762.7,1761.8,9.54477477]
[1743686113056,0.55,1762.6,1761.9,1.52]
[1743686113352,5.67411,1762.4,1762.0,5.6752]
[1743686113545,5.67411,1762.4,1762.1,5.67493]
[1743686113749,11.34839,1762.4,1762.0,5.6752]
[1743686114363,5.67381,1762.5,1762.0,1.287085]
[1743686114536,18.52402,1762.6,1762.2,5.67464]
[1743686114747,7.177,1762.6,1762.0,5.67533]
[1743686114942,5.67438,1762.4,1761.9,7.19557]
[1743686115235,11.34876,1762.4,1762.0,5.67535]
[1743686115460,5.67438,1762.4,1762.0,5.67535]
[1743686115660,5.67378,1762.5,1762.1,5.6749]
[1743686116243,5.96717509,1762.9,1762.3,1.6073]
[1743686116440,0.29466509,1762.9,1762.6,5.67328]
[1743686116640,5.96716509,1762.9,1762.5,5.67375]
[1743686116866,5.67216,1763.0,1762.6,5.6733]
[1743686121390,0.29514765,1763.5,1763.1,1.5498]
[1743686121545,5.67176,1763.2,1762.9,1.6288]
[1743686121744,5.67226,1763.0,1762.7,1.6288]
[1743686122351,5.67209,1763.1,1762.7,7.30173]
[1743686122579,5.67184,1763.1,1762.7,7.30186]
[1743686122894,5.67118,1763.3,1762.7,1.6288]
[1743686123048,5.67279,1762.8,1762.4,15.21681477]
[1743686123251,5.67279,1762.8,1762.5,1.5906]
[1743686123599,5.67343,1762.6,1762.2,5.6746]
[1743686123767,5.67343,1762.6,1762.3,1.5905]
[1743686124152,9.2911,1763.1,1762.3,1.5905]
[1743686124153,5.67398,1762.5,1762.3,1.5905]
[1743686124395,5.67359,1762.6,1762.3,1.5905]
[1743686124705,5.67408,1762.4,1762.3,1.5905]
[1743686124893,5.67381,1762.5,1762.1,7.26658]
[1743686125283,5.67343,1762.6,1762.1,1.5917]
[1743686125592,5.67418,1762.4,1762.1,1.5917]
[1743686125798,5.67389,1762.5,1762.1,7.26673]
[1743686126077,12.84052,1762.6,1762.2,6.45813711]
[1743686126479,12.84052,1762.6,1762.2,6.401273]
[1743686126692,18.51415,1762.6,1762.2,6.401273]
[1743686126850,12.84052,1762.6,1762.2,12.13261306]
[1743686127049,12.84052,1762.6,1762.2,6.401273]
[1743686127285,5.67282,1762.8,1762.4,5.67398]
[1743686127486,11.34579,1762.8,1762.4,5.67398]
[1743686127787,5.67282,1762.8,1762.4,5.67398]
[1743686127974,5.67282,1762.8,1762.5,1.6541]
[1743686128152,5.67253,1762.9,1762.5,1.6541]
[1743686128353,5.67253,1762.9,1762.5,8.63371146]
[1743686129399,11.34449,1763.0,1762.5,8.63358146]
[1743686129602,5.67247,1762.9,1762.5,8.63358146]
[1743686130008,2.35409599,1763.5,1762.9,5.67236]
[1743686130202,5.67128,1763.3,1763.0,1.5782]
[1743686130414,5.67128,1763.3,1762.8,5.67272]
[1743686130415,5.67213,1763.1,1762.7,1.5782]
[1743686130708,5.67224,1763.0,1762.7,1.5782]
[1743686131066,5.67281,1762.8,1762.5,1.5106]
[1743686131500,0.15197852,1762.7,1762.5,7.18429]
[1743686131704,11.34509,1762.9,1762.5,7.18429]
[1743686131895,0.1773927,1762.6,1762.5,1.5106]
[1743686132099,5.67291,1762.8,1762.5,1.5106]
[1743686132302,0.1773927,1762.6,1762.5,1.5106]
[1743686132499,5.6725,1762.9,1762.5,14.143831]
[1743686132701,0.1773927,1762.6,1762.5,7.18423]
[1743686132995,5.6728,1762.8,1762.5,1.5106]
[1743686133380,7.33377,1763.0,1762.6,5.67341]
[1743686133586,5.67248,1762.9,1762.6,5.67341]
[1743686133775,0.1773927,1762.8,1762.5,7.18423]
[1743686133974,0.1773927,1762.8,1762.5,8.28953448]
[1743686134172,0.1773927,1762.8,1762.5,13.96312448]
[1743686134402,0.1773927,1762.8,1762.6,5.67342]
[1743686134607,5.67195,1763.1,1762.7,5.67311]
[1743686134792,0.1773927,1763.0,1762.7,11.34612]
[1743686135000,0.1773927,1763.0,1762.9,5.67247]
[1743686135315,5.67146,1763.3,1762.9,7.32057]
[1743686135779,5.83561531,1763.2,1762.9,1.6481]
[1743686136179,5.83561531,1763.2,1762.9,7.32051]
[1743686136372,0.16399531,1763.2,1763.0,5.67202]
[1743686136572,5.67092,1763.4,1763.1,0.567202]
[1743686136811,0.16399531,1763.3,1763.1,0.567202]
[1743686137222,0.2941355,1763.5,1762.8,6.807362]
[1743686137409,5.67193,1763.1,1762.8,1.134612]
[1743686137571,5.67218,1763.0,1762.8,1.134612]
[1743686137904,0.16593369,1762.9,1762.7,1.5391]
[1743686138295,5.67216,1763.0,1762.7,1.5391]
[1743686138495,0.16561067,1762.8,1762.7,1.5391]
[1743686138676,5.67216,1763.0,1762.7,1.5391]
[1743686138877,5.67216,1763.0,1762.6,5.67328]
[1743686138878,5.67314,1762.7,1762.5,1.5405]
[1743686139085,5.67314,1762.7,1762.3,1.5405]
[1743686139301,5.67314,1762.7,1762.3,7.21476]
[1743686139302,0.1642538,1762.6,1762.3,7.21476]
[1743686139505,0.1642538,1762.6,1762.4,0.721476]
[1743686140315,5.8377338,1762.6,1762.3,1.5405]
[1743686141019,0.1642538,1762.6,1762.3,7.21489]
[1743686141806,5.8376938,1762.6,1762.3,7.21489]
[1743686142120,5.67382,1762.5,1762.3,1.5405]
[1743686142824,0.16257342,1762.4,1762.3,7.27163993]
[1743686142999,0.16257342,1762.4,1762.3,9.13373392]
[1743686143327,5.67284,1762.8,1762.4,5.67403]
[1743686143691,5.67241,1763.0,1762.3,7.53645399]
[1743686143897,11.34468,1763.0,1762.6,5.6733]
[1743686144093,5.67233,1763.0,1762.6,5.6733]
[1743686144298,5.67233,1763.0,1762.6,12.636484]
[1743686144598,11.34465,1763.0,1762.6,6.963164]
[1743686144804,5.67254,1762.9,1762.6,1.289864]
[1743686145005,5.67291,1762.8,1762.5,1.5516]
[1743686145235,5.67254,1762.9,1762.5,7.22513]
[1743686145410,11.3452,1762.9,1762.5,7.22513]
[1743686145841,5.6728,1762.8,1762.5,1.5516]
[1743686146034,5.67323,1762.7,1762.5,1.5516]
[1743686146398,5.67219,1763.0,1762.5,2.274166]
[1743686146604,11.34454,1763.0,1762.6,5.67334]
[1743686146928,5.67219,1763.0,1762.6,11.34665]
[1743686147135,5.67219,1763.0,1762.7,5.67303]
[1743686147326,11.34451,1763.0,1762.6,5.67331]
[1743686147633,5.67219,1763.0,1762.6,11.3466]
[1743686147833,11.34386,1763.1,1762.7,6.80766]
[1743686148130,5.67217,1763.0,1762.6,5.67336]
[1743686148301,5.67217,1763.0,1762.6,11.34665]
[1743686148499,5.67185,1763.1,1762.7,5.6729]
[1743686148704,5.67185,1763.1,1762.8,5.67277]
[1743686149425,12.82055,1763.2,1762.8,11.34541]
[1743686149636,5.67119,1763.3,1762.9,7.17967]
[1743686149937,5.67121,1763.3,1763.0,5.67202]
[1743686150112,5.67095,1763.4,1763.0,11.34403]
[1743686150310,11.34198,1763.4,1763.0,5.67201]
[1743686151018,5.6712,1763.3,1763.0,5.67201]
[1743686151348,5.67095,1763.4,1763.0,11.34402]
[1743686151508,11.34211,1763.4,1763.0,6.957142]
[1743686152407,5.67095,1763.4,1763.1,5.6718]
[1743686152601,5.9647455,1763.5,1763.2,5.67145]
[1743686152853,5.9647455,1763.5,1763.1,11.34336]
[1743686153052,5.9647455,1763.5,1763.2,7.24607]
[1743686153053,0.2941355,1763.5,1763.2,7.24607]
[1743686153253,5.7193,1763.9,1763.3,0.724607]
[1743686153532,0.05,1763.9,1763.6,7.2449]
[1743686153705,5.71927,1763.9,1763.6,7.2449]
[1743686154324,11.38871,1763.9,1763.6,1.5748]
[1743686154704,5.71927,1763.9,1763.6,1.5748]
[1743686154905,0.05,1763.9,1763.8,5.66957]
[1743686155106,0.05,1763.9,1763.8,6.80918086]
[1743686155727,0.05,1763.9,1763.8,8.3186701]
[1743686156032,0.05,1763.9,1763.8,8.26198086]
[1743686156203,0.05,1763.9,1763.8,11.26198086]
[1743686156607,5.96001342,1764.7,1764.3,5.66773]
[1743686156806,11.33365,1764.7,1764.4,2.107773]
[1743686157202,5.66753,1764.5,1764.1,1.5508]
[1743686157836,5.66753,1764.5,1764.1,7.27607836]
[1743686158017,11.33505,1764.5,1764.1,7.27607836]
[1743686158404,5.66752,1764.5,1764.1,1.60747836]
[1743686158604,5.66766,1764.4,1764.1,1.5508]
[1743686158937,5.66736,1764.5,1764.1,1.5508]
[1743686159115,5.66736,1764.5,1764.1,7.21928]
[1743686159307,5.66736,1764.5,1764.2,0.721928]
[1743686159629,11.33488,1764.5,1764.2,0.721928]
[1743686160000,5.66789,1764.4,1764.2,0.721928]
[1743686160231,5.66683,1764.7,1764.3,5.66781]
[1743686160419,5.96001736,1764.8,1764.4,7.12494]
[1743686160606,5.66656,1764.8,1764.4,12.79247]
[1743686160922,11.33312,1764.8,1764.4,7.12483]
[1743686161114,5.66656,1764.8,1764.4,7.12483]
[1743686161315,5.66656,1764.8,1764.5,0.712483]
[1743686161512,0.05,1764.9,1764.5,0.712483]
[1743686161825,5.66636,1764.8,1764.5,0.05666826]
[1743686162152,5.66636,1764.8,1764.4,7.12491]
[1743686162362,5.66636,1764.8,1764.5,0.05666658]
[1743686162531,5.71609,1764.9,1764.5,5.72398658]
[1743686162706,0.05,1764.9,1764.7,5.66646]
[1743686162908,0.05,1764.9,1764.8,0.566646]
[1743686163324,0.05,1764.9,1764.6,12.83004]
[1743686163642,5.71612,1764.9,1764.6,1.4962]
[1743686163847,0.05,1764.9,1764.6,7.16309]
[1743686165639,5.71608,1764.9,1764.6,7.16309]
[1743686165863,5.71608,1764.9,1764.7,9.59196501]
[1743686165864,0.05,1764.9,1764.7,9.59196501]
[1743686166008,0.05,1764.9,1764.8,0.9591965]
[1743686166341,0.05,1764.9,1764.8,8.0575565]
[1743686166909,0.05,1764.9,1764.8,2.3911965]
[1743686167709,0.05,1764.9,1764.8,2.44785289]
[1743686168029,0.05,1764.9,1764.8,11.11421289]
[1743686168228,0.05,1764.9,1764.8,11.0575565]
[1743686168419,0.22377878,1764.9,1764.8,11.0575565]
[1743686168605,0.05,1764.9,1764.8,8.0575565]
[1743686168804,5.71604,1764.9,1764.6,1.5507]
[1743686169037,5.66637,1764.8,1764.6,1.5507]
[1743686169449,0.17377878,1764.7,1764.6,7.2177]
[1743686169746,0.05,1764.9,1764.8,5.66636]
[1743686170114,0.05,1764.9,1764.8,8.66636]
[1743686170332,0.05,1764.9,1764.8,10.666309]
[1743686170539,0.05,1764.9,1764.8,11.979109]
[1743686171522,0.05,1764.9,1764.8,3.312749]
[1743686172040,0.05,1764.9,1764.8,8.979109]
[1743686172924,0.05,1764.9,1764.8,3.312749]
[1743686173127,5.71604,1764.9,1764.8,1.999949]
[1743686173309,5.66643,1764.8,1764.4,10.78153477]
[1743686173510,5.66643,1764.8,1764.5,0.0566649]
[1743686174014,5.6667,1764.7,1764.4,16.44894477]
[1743686174241,11.33299,1764.8,1764.5,0.05666672]
[1743686174546,5.7161,1764.9,1764.6,5.66699]
[1743686175221,0.05,1764.9,1764.8,5.66636]
[1743686176317,0.05,1764.9,1764.7,5.16001477]
[1743686176749,0.05,1764.9,1764.7,10.88306641]
[1743686177043,0.05,1764.9,1764.8,5.66636]
[1743686177244,0.05,1764.9,1764.8,7.32130264]
[1743686177548,0.05,1764.9,1764.8,1.65494264]
[1743686177843,0.05,1764.9,1764.8,1.71160269]
[1743686178049,0.05,1764.9,1764.8,1.65494264]
[1743686180825,0.05,1764.9,1764.8,6.85630992]
[1743686181024,0.05,1764.9,1764.8,1.18994992]
[1743686181224,0.05,1764.9,1764.5,2.95926115]
[1743686181436,5.66636,1764.8,1764.5,7.03267413]
[1743686181846,5.66636,1764.8,1764.5,1.3087]
[1743686182042,5.66715,1764.6,1764.3,1.2877]
[1743686182243,5.66668,1764.7,1764.3,12.62345]
[1743686182445,11.33357,1764.7,1764.3,12.62345]
[1743686182650,5.66732,1764.5,1764.4,1.262345]
[1743686182965,5.66732,1764.5,1764.2,12.62404]
[1743686183126,0.17319861,1764.5,1764.3,5.72461388]
[1743686183328,1.41179861,1764.5,1764.3,0.05667388]
[1743686183527,5.66758,1764.5,1764.2,5.72493388]
[1743686183726,0.17319861,1764.4,1764.2,5.72493388]
[1743686183962,0.17319861,1764.4,1764.3,0.57249339]
[1743686184160,0.17319861,1764.4,1764.3,6.24046339]
[1743686184358,11.33288,1764.8,1764.4,5.66751]
[1743686184561,6.95467,1764.9,1764.5,5.66716]
[1743686184727,5.66647,1764.8,1764.5,5.66716]
[1743686184928,5.66647,1764.8,1764.6,0.566716]
[1743686185128,5.66647,1764.8,1764.6,0.62337968]
[1743686185329,5.66668,1764.7,1764.6,0.566716]
[1743686185650,5.66647,1764.8,1764.4,9.53638477]
[1743686186049,5.6667,1764.7,1764.4,9.53638477]
[1743686186260,5.66647,1764.8,1764.5,0.05666762]
[1743686186436,5.71607,1764.9,1764.5,5.72383644]
[1743686186637,5.71607,1764.9,1764.6,5.6669]
[1743686186832,11.38231,1764.9,1764.7,0.56669]
[1743686187038,5.6667,1764.7,1764.4,9.53643477]
[1743686187237,11.33355,1764.7,1764.4,9.59310355]
[1743686187439,5.66796,1764.4,1764.0,6.9231]
[1743686187645,5.66808,1764.3,1764.0,1.2542]
[1743686187968,11.33683,1764.2,1763.9,9.53793477]
[1743686188166,5.66838,1764.2,1764.0,0.95379348]
[1743686188377,1.2599,1764.2,1763.8,2.36461086]
[1743686188536,5.66957,1763.8,1763.7,4.24374716]
[1743686189041,5.66957,1763.8,1763.3,6.94951]
[1743686189042,5.67039,1763.6,1763.3,1.2784]
[1743686193572,5.66829,1764.2,1764.1,0.56689]
[1743686193743,5.66829,1764.2,1763.8,14.33883]
[1743686193943,5.66829,1764.2,1763.9,5.66924]
[1743686194140,5.66776,1764.4,1763.8,3.0]
[1743686194348,5.66776,1764.4,1764.0,5.6688]
[1743686194547,5.66817,1764.3,1763.9,5.66925]
[1743686194881,5.66817,1764.3,1764.0,0.62360804]
[1743686195576,1.2472,1764.2,1763.7,1.980848]
[1743686195779,5.66936,1763.9,1763.5,6.88121]
[1743686196084,0.1501258,1763.8,1763.7,5.66989]
[1743686196248,0.1501258,1763.8,1763.7,9.53870477]
[1743686196448,11.33685,1764.2,1763.8,5.66939]
[1743686196667,11.33685,1764.2,1763.9,0.566939]
[1743686196869,5.66866,1764.1,1763.9,0.566939]
[1743686197458,1.3055,1764.4,1763.9,0.566939]
[1743686197782,5.66907,1764.0,1763.6,5.67007]
[1743686198279,11.33745,1764.1,1763.7,5.72648039]
[1743686198481,0.1501258,1763.9,1763.7,5.72648039]
[1743686198650,5.66896,1764.0,1763.7,5.72657039]
[1743686198847,0.1501258,1763.8,1763.7,5.72657039]
[1743686199061,5.66896,1764.0,1763.7,1.13967204]
[1743686199260,0.1501258,1763.8,1763.7,1.13967204]
[1743686199456,1.2622,1764.2,1763.7,1.13967204]
[1743686199659,0.1501258,1763.8,1763.4,4.56943125]
[1743686199858,5.67045,1763.6,1763.4,0.70061648]
[1743686200066,5.67054,1763.5,1763.1,10.74688477]
[1743686200259,5.6711,1763.4,1763.0,11.34401]
[1743686200463,5.67059,1763.5,1763.2,5.67144]
[1743686200864,5.67101,1763.4,1763.0,11.34414]
[1743686201076,5.82120043,1763.4,1763.0,11.34414]
[1743686201277,5.82120043,1763.4,1763.1,6.806174]
[1743686201458,5.82120043,1763.4,1763.1,6.86288431]
[1743686201659,0.15019043,1763.4,1763.3,5.67118]
[1743686201983,5.67034,1763.6,1763.3,5.67118]
[1743686202297,5.67087,1763.4,1763.1,6.806194]
[1743686202459,5.67087,1763.4,1763.2,0.6806194]
[1743686202783,0.14818672,1763.3,1763.2,5.67136]
[1743686203081,5.67055,1763.5,1763.2,5.67136]
[1743686203281,0.14818672,1763.3,1763.2,5.67136]
[1743686203483,5.67055,1763.5,1763.2,5.72806847]
[1743686203689,0.14818672,1763.3,1763.1,10.67494877]
[1743686203856,5.6715,1763.2,1762.9,5.67237]
[1743686204184,5.81968672,1763.2,1762.9,5.67237]
[1743686204765,5.81968672,1763.2,1763.0,5.67213]
[1743686204766,0.14818672,1763.2,1763.0,5.67213]
[1743686204971,5.67059,1763.5,1763.1,6.87732]
[1743686205174,5.81512877,1763.4,1763.0,5.67213]
[1743686205378,5.67153,1763.2,1762.9,1.2055]
[1743686205591,5.67193,1763.1,1762.9,1.2055]
[1743686205790,0.14417877,1763.0,1762.8,11.40225758]
[1743686205961,5.67155,1763.2,1762.9,5.67247]
[1743686206280,0.14417877,1763.1,1762.9,6.806994]
[1743686206856,0.14417877,1763.1,1762.9,1.134524]
[1743686206857,5.67214,1763.0,1762.9,1.134524]
[1743686207077,11.34448,1763.0,1762.7,1.2055]
[1743686207276,5.67214,1763.0,1762.7,1.26222249]
[1743686207453,5.81499739,1762.9,1762.5,10.81726477]
[1743686207658,5.81501739,1762.9,1762.5,1.33142721]
[1743686207866,5.81501739,1762.9,1762.5,1.2747]
[1743686208189,5.67296,1762.8,1762.5,6.368472]
[1743686208384,0.14159183,1762.7,1762.5,0.694872]
[1743686208597,5.81487183,1762.7,1762.3,6.94908]
[1743686208756,5.81487183,1762.7,1762.3,7.00581255]
[1743686213966,0.12166036,1763.3,1763.1,0.86930885]
[1743686214192,0.12166036,1763.3,1763.1,0.81259782]
[1743686214375,0.12166036,1763.3,1763.1,6.54097113]
[1743686214571,0.12166036,1763.3,1763.2,0.65409711]
[1743686214775,5.79294036,1763.3,1763.1,0.81259782]
[1743686215278,0.12166036,1763.3,1763.1,6.48433782]
[1743686215487,0.12166036,1763.3,1763.1,0.81259782]
[1743686215861,0.12166036,1763.3,1763.1,6.48437782]
[1743686216062,0.12166036,1763.3,1763.1,6.48431782]
[1743686216263,0.12166036,1763.3,1763.2,0.64843178]
[1743686217311,0.12166036,1763.3,1762.9,0.05671442]
[1743686217487,5.67192,1763.1,1762.8,10.90848429]
[1743686217888,11.34393,1763.1,1762.8,9.54156477]
[1743686218087,0.12166036,1763.0,1762.8,9.59828686]
[1743686218302,0.12166036,1763.0,1762.8,9.54156477]
[1743686218506,0.12166036,1763.0,1762.8,1.52145048]
[1743686218803,5.67324,1762.7,1762.4,6.88917]
[1743686219003,5.67285,1762.8,1762.4,12.61983458]
[1743686219222,0.11887962,1762.7,1762.6,5.67343]
[1743686219423,11.34394,1763.1,1762.7,5.67295]
[1743686219583,0.11777994,1763.0,1762.8,6.239915]
[1743686220468,0.11777994,1763.0,1762.8,0.567295]
[1743686220672,5.78996994,1763.0,1762.6,5.6734]
[1743686220899,5.67257,1762.9,1762.6,5.73012492]
[1743686221072,11.34527,1762.9,1762.6,0.05672492]
[1743686221272,0.11777994,1762.8,1762.6,0.05672633]
[1743686221506,0.11777994,1762.8,1762.7,5.67311]
[1743686221707,0.11777994,1762.8,1762.7,6.807752]
[1743686221903,6.89401,1763.2,1762.9,5.67245]
[1743686222204,5.67124,1763.3,1762.9,11.34481]
[1743686222500,11.34259,1763.3,1762.9,5.67236]
[1743686222706,11.34336,1763.2,1762.8,6.97191]
[1743686222907,11.34336,1763.2,1762.8,13.4552052]
[1743686223073,11.34336,1763.2,1762.8,7.7824952]
[1743686223697,5.67185,1763.1,1762.8,7.7824952]
[1743686223976,5.67185,1763.1,1762.7,6.807702]
[1743686224176,5.67255,1762.9,1762.6,5.67333]
[1743686224471,5.67255,1762.9,1762.3,12.54301477]
[1743686224472,5.67281,1762.8,1762.4,12.65799]
[1743686224776,6.96004,1763.0,1762.6,5.67328]
[1743686224777,5.67267,1762.9,1762.6,5.67328]
[1743686224992,12.63226,1763.0,1762.6,5.67328]
[1743686225197,12.63226,1763.0,1762.6,0.5730015]
[1743686225198,5.67257,1762.9,1762.6,0.5730015]
[1743686225394,5.67295,1762.8,1762.5,5.67368]
[1743686225582,11.34519,1762.9,1762.5,5.67361]
[1743686225992,5.67363,1762.6,1762.3,9.54320477]